fUSD/lending_fUSD_20250217
["ID","MTS","AMOUNT","RATE_DAILY","PERIOD"]
[353439291,1739827845101,-603.88,0.000189,2]
[353439293,1739827845110,-628.81058535,0.000189,2]
[353439295,1739827845119,-628.81058535,0.000189,2]
[353439297,1739827845129,-628.81058535,0.000189,2]
[353439299,1739827845139,-628.81058535,0.000189,2]
[353439301,1739827845149,-628.81058535,0.000189,2]
[353439303,1739827845159,-628.81058535,0.000189,2]
[353439305,1739827845169,-628.81058535,0.000189,2]
[353439307,1739827845178,-628.81058535,0.000189,2]
[353439309,1739827845188,-628.81058535,0.000189,2]
[353439311,1739827845197,-628.81058535,0.000189,2]
[353439313,1739827845207,-628.81058535,0.000189,2]
[353439315,1739827845217,-628.81058535,0.000189,2]
[353439317,1739827845226,-628.81058535,0.000189,2]
[353439319,1739827845236,-628.81058535,0.000189,2]
[353439321,1739827845246,-628.81058535,0.000189,2]
[353439323,1739827845256,-628.81058535,0.000189,2]
[353439325,1739827845266,-628.81058535,0.000189,2]
[353439346,1739827845451,-628.81058535,0.000189,2]
[353439348,1739827845468,-628.81058535,0.000189,2]
[353439350,1739827845478,-628.81,0.000189,2]
[353439352,1739827845487,-796.57199367,0.000189,2]
[353439354,1739827845501,-796.57199367,0.000189,2]
[353439356,1739827845510,-796.57199367,0.000189,2]
[353439357,1739827845520,-796.57199367,0.000189,2]
[353439359,1739827845529,-796.57199367,0.000189,2]
[353439361,1739827845541,-796.57199367,0.000189,2]
[353439363,1739827845550,-796.57199367,0.000189,2]
[353439365,1739827845560,-796.57199367,0.000189,2]
[353439367,1739827845569,-796.57199367,0.000189,2]
[353439369,1739827845579,-796.57199367,0.000189,2]
[353439371,1739827845588,-796.57199367,0.000189,2]
[353439373,1739827845597,-796.57199367,0.000189,2]
[353439375,1739827845606,-796.57199367,0.000189,2]
[353439377,1739827845616,-796.57199367,0.000189,2]
[353439379,1739827845625,-796.57199367,0.000189,2]
[353439381,1739827845635,-796.57199367,0.000189,2]
[353439383,1739827845644,-796.57199367,0.000189,2]
[353439385,1739827845653,-796.57199367,0.000189,2]
[353439387,1739827845663,-796.57199367,0.000189,2]
[353439389,1739827845672,-796.57,0.000189,2]
[353439391,1739827845682,-560.79949436,0.00018907,2]
[353439393,1739827845691,-150.0,0.00018986,2]
[353439395,1739827845701,-150.0,0.00018986,2]
[353439397,1739827845712,-420.61,0.00018989,2]
[353439399,1739827845721,-420.61,0.0001899,2]
[353439401,1739827845730,-420.61,0.0001899,2]
[353439403,1739827845739,-420.61,0.0001899,2]
[353439405,1739827845749,-420.61,0.0001899,2]
[353439407,1739827845758,-420.61,0.0001899,2]
[353439409,1739827845768,-420.61,0.0001899,2]
[353439410,1739827845777,-420.61,0.0001899,2]
[353439412,1739827845787,-420.61,0.0001899,2]
[353439414,1739827845797,-420.61,0.0001899,2]
[353439416,1739827845806,-420.61,0.0001899,2]
[353439418,1739827845816,-420.61,0.0001899,2]
[353439420,1739827845825,-420.61,0.0001899,2]
[353439422,1739827845835,-420.61,0.0001899,2]
[353439424,1739827845844,-420.61,0.0001899,2]
[353439426,1739827845854,-420.61,0.0001899,2]
[353439428,1739827845863,-420.61,0.0001899,2]
[353439430,1739827845873,-420.61,0.0001899,2]
[353439432,1739827845882,-420.61,0.0001899,2]
[353439434,1739827845891,-420.61,0.0001899,2]
[353439436,1739827845901,-420.61,0.0001899,2]
[353439438,1739827845910,-420.61,0.0001899,2]
[353439440,1739827845920,-420.61,0.0001899,2]
[353439442,1739827845929,-420.61,0.0001899,2]
[353439444,1739827845938,-420.61,0.0001899,2]
[353439446,1739827845947,-420.61,0.0001899,2]
[353439448,1739827845958,-420.61,0.0001899,2]
[353439450,1739827845968,-420.61,0.0001899,2]
[353439452,1739827845977,-420.61,0.0001899,2]
[353439454,1739827845986,-420.61,0.0001899,2]
[353439456,1739827845995,-420.61,0.0001899,2]
[353439458,1739827846004,-420.61,0.0001899,2]
[353439460,1739827846014,-420.61,0.0001899,2]
[353439462,1739827846023,-420.61,0.0001899,2]
[353439463,1739827846031,-420.61,0.0001899,2]
[353439465,1739827846041,-420.61,0.0001899,2]
[353439468,1739827846051,-420.61,0.0001899,2]
[353439470,1739827846060,-420.61,0.0001899,2]
[353439471,1739827846069,-420.61,0.0001899,2]
[353439474,1739827846079,-420.61,0.0001899,2]
[353439475,1739827846089,-420.61,0.0001899,2]
[353439478,1739827846099,-420.61,0.0001899,2]
[353439480,1739827846109,-420.61,0.0001899,2]
[353439481,1739827846118,-420.61,0.0001899,2]
[353439483,1739827846127,-420.61,0.0001899,2]
[353439485,1739827846137,-420.61,0.0001899,2]
[353439488,1739827846148,-420.61,0.0001899,2]
[353439490,1739827846157,-420.61,0.0001899,2]
[353439491,1739827846167,-420.61,0.0001899,2]
[353439493,1739827846176,-420.61,0.0001899,2]
[353439496,1739827846186,-420.61,0.0001899,2]
[353439497,1739827846195,-420.61,0.0001899,2]
[353439500,1739827846206,-420.61,0.0001899,2]
[353439503,1739827846216,-420.61,0.0001899,2]
[353439506,1739827846225,-420.61,0.0001899,2]
[353439508,1739827846235,-420.61,0.0001899,2]
[353439510,1739827846244,-420.61,0.0001899,2]
[353439512,1739827846254,-420.61,0.0001899,2]
[353439514,1739827846264,-420.61,0.0001899,2]
[353439517,1739827846274,-420.61,0.0001899,2]
[353439518,1739827846283,-420.61,0.0001899,2]
[353439520,1739827846293,-420.61,0.0001899,2]
[353439522,1739827846303,-420.61,0.0001899,2]
[353439523,1739827846312,-420.61,0.0001899,2]
[353439524,1739827846322,-420.61,0.0001899,2]
[353439525,1739827846331,-420.61,0.0001899,2]
[353439526,1739827846340,-420.61,0.0001899,2]
[353439527,1739827846351,-420.61,0.0001899,2]
[353439528,1739827846360,-420.61,0.0001899,2]
[353439529,1739827846369,-420.61,0.0001899,2]
[353439530,1739827846379,-420.61,0.0001899,2]
[353439531,1739827846388,-420.61,0.0001899,2]
[353439532,1739827846398,-420.61,0.0001899,2]
[353439534,1739827846407,-420.61,0.0001899,2]
[353439535,1739827846417,-420.61,0.0001899,2]
[353439537,1739827846426,-420.61,0.0001899,2]
[353439539,1739827846436,-420.61,0.0001899,2]
[353439541,1739827846445,-420.61,0.0001899,2]
[353439543,1739827846454,-420.61,0.0001899,2]
[353439545,1739827846464,-420.61,0.0001899,2]
[353439547,1739827846473,-420.61,0.0001899,2]
[353439549,1739827846483,-420.61,0.0001899,2]
[353439551,1739827846493,-420.61,0.0001899,2]
[353439553,1739827846507,-420.61,0.0001899,2]
[353439555,1739827846516,-420.61,0.0001899,2]
[353439557,1739827846526,-420.61,0.0001899,2]
[353439559,1739827846535,-420.61,0.0001899,2]
[353439561,1739827846544,-904016.63652989,0.00018992,6]
[353439564,1739827846559,-1170303.02355053,0.00018992,6]
[353439566,1739827846571,-962.17607558,0.00018992,6]
[353439568,1739827846582,-348.37133892,0.00018992,6]
[353439570,1739827846595,-6998.244741,0.00018992,6]
[353439572,1739827846606,-397220.96564964,0.00018992,6]
[353439575,1739827846619,-298.20400037,0.00018992,6]
[353439577,1739827846629,-2582.5045905,0.00018992,6]
[353439579,1739827846642,-325207.32954341,0.00018992,6]
[353439581,1739827846654,-963.93402,0.00018992,6]
[353439584,1739827846665,-10994.45587505,0.00018992,6]
[353439586,1739827846676,-563054.37044485,0.00018992,6]
[353439588,1739827846687,-6597.02326901,0.00018992,6]
[353439590,1739827846699,-24385.6433,0.00018992,6]
[353439592,1739827846710,-765.572688,0.00018992,6]
[353439595,1739827846722,-24144.823,0.00018992,6]
[353439597,1739827846733,-1284.27797826,0.00018992,6]
[353439599,1739827846745,-1026.48541,0.00018992,6]
[353439601,1739827846756,-2516.16206871,0.00018992,6]
[353439603,1739827846767,-13244.85510726,0.00018992,6]
[353439607,1739827846797,-84583.00454562,0.00018992,6]
[353439609,1739827846808,-3017.67413707,0.00018992,6]
[353439612,1739827846819,-297.16,0.00018992,6]
[353439614,1739827846830,-650.59750741,0.00018992,6]
[353439616,1739827846841,-11768.82573503,0.00018992,6]
[353439618,1739827846852,-1448.88637936,0.00018992,6]
[353439620,1739827846863,-8859.39332455,0.00018992,6]
[353439622,1739827846874,-12338.0,0.00018992,6]
[353439624,1739827846885,-502.28075208,0.00018992,6]
[353439627,1739827846896,-16813.12447144,0.00018992,6]
[353439629,1739827846907,-10997.62435282,0.00018992,6]
[353439631,1739827846919,-61730.7694949,0.00018992,6]
[353439633,1739827846930,-699.02967159,0.00018992,6]
[353439635,1739827846940,-514.17681462,0.00018992,6]
[353439637,1739827846952,-1211.65,0.00018992,6]
[353439640,1739827846963,-322.3,0.00018992,6]
[353439642,1739827846973,-2713.15229392,0.00018992,6]
[353439644,1739827846984,-1053.10199189,0.00018992,6]
[353439646,1739827846995,-282.9,0.00018992,6]
[353439648,1739827847006,-275.59360016,0.00018992,6]
[353439650,1739827847017,-302.3099983,0.00018992,6]
[353439653,1739827847029,-427.98,0.00018992,6]
[353439655,1739827847040,-11455.17307481,0.00018992,6]
[353439852,1739829031952,-769.6743,8.836e-05,2]
[353439853,1739829031961,-150.0,8.844e-05,2]
[353439854,1739829031971,-24.1231135,8.973e-05,2]
[353439855,1739829031981,-366.29064241,8.973e-05,2]
[353439856,1739829031994,-295.44814184,8.973e-05,2]
[353439857,1739829032011,-2886.98600225,8.973e-05,2]
[353439858,1739829032020,-218.64235302,9.719e-05,2]
[353439859,1739829032030,-200.0,9.719e-05,2]
[353439860,1739829032038,-150.0,9.719e-05,2]
[353439861,1739829032047,-150.0,9.719e-05,2]
[353439862,1739829032056,-150.0,9.973e-05,2]
[353439863,1739829032066,-550.0,0.0001,2]
[353439864,1739829032075,-191.53,0.00010137,2]
[353439865,1739829032084,-250.0,0.00011948,2]
[353439866,1739829032093,-150.0,0.00011992,2]
[353439867,1739829032102,-600.0,0.00012,2]
[353439868,1739829032111,-274.58,0.00012023,2]
[353439869,1739829032120,-537.82803496,0.00012101,2]
[353439870,1739829032141,-962.17196504,0.00012101,2]
[353439871,1739829032150,-1092.52534715,0.00012116,2]
[353439872,1739829032161,-907.47465285,0.00012116,2]
[353439873,1739829032170,-170.0,0.00012175,2]
[353439874,1739829032179,-150.0,0.0001223,2]
[353439875,1739829032187,-229.09202546,0.00012231,2]
[353439876,1739829032198,-994.8,0.00012231,2]
[353439877,1739829032208,-776.10797454,0.00012231,2]
[353439878,1739829032216,-612.49358785,0.00012231,2]
[353439879,1739829032390,-927.61514,0.00012231,2]
[353439880,1739829032402,-28459.88127215,0.00012231,2]
[353439881,1739829032411,-150.0,0.00012304,2]
[353439882,1739829032421,-150.0,0.00012304,2]
[353439883,1739829032435,-150.0,0.00012304,2]
[353439884,1739829032444,-2901.427,0.0001237,2]
[353439885,1739829032453,-165.761,0.0001237,2]
[353439886,1739829032462,-2099.07,0.00012384,2]
[353439888,1739829032471,-1244.77,0.00012441,2]
[353439890,1739829032480,-216.73,0.00012542,2]
[353439891,1739829032490,-23900.0,0.00012636,2]
[353439893,1739829032499,-150.0,0.0001276,2]
[353439895,1739829032508,-150.0,0.00012988,2]
[353439897,1739829032517,-900.0,0.00013,4]
[353439899,1739829032527,-1900.0,0.000131,4]
[353439901,1739829032536,-2800.0,0.000132,4]
[353439903,1739829032545,-150.0,0.00013216,2]
[353439905,1739829032555,-3800.0,0.000133,4]
[353439907,1739829032564,-4700.0,0.000134,4]
[353439909,1739829032574,-1024.15,0.00013431,2]
[353439911,1739829032584,-900.0,0.000135,4]
[353439913,1739829032593,-158.92334666,0.00013598,2]
[353439915,1739829032602,-2054.67188899,0.00013598,2]
[353439917,1739829032612,-320.92967085,0.00013598,2]
[353439919,1739829032621,-167.81627907,0.00013598,2]
[353439921,1739829032630,-3244.75509376,0.00013598,2]
[353439923,1739829032639,-304.55255786,0.00013598,2]
[353439925,1739829032648,-213.81749124,0.00013598,2]
[353439927,1739829032657,-900.0,0.000136,4]
[353439929,1739829032667,-150.0,0.00013671,2]
[353439931,1739829032676,-150.0,0.00013671,2]
[353439933,1739829032685,-152.53401292,0.00013673,2]
[353439935,1739829032694,-300.0,0.00013697,2]
[353439937,1739829032703,-300.0,0.00013697,2]
[353439939,1739829032712,-191.62751316,0.00013698,3]
[353439941,1739829032721,-251.28890042,0.00013698,3]
[353439943,1739829032730,-2802.20122347,0.00013698,2]
[353439945,1739829032740,-500.0,0.00013698,2]
[353439947,1739829032749,-500.0,0.00013698,2]
[353439949,1739829032758,-500.0,0.00013698,2]
[353439951,1739829032767,-500.0,0.00013698,2]
[353439953,1739829032776,-500.0,0.00013698,2]
[353439955,1739829032785,-500.0,0.00013698,2]
[353439957,1739829032794,-22674.28455268,0.00013698,5]
[353439959,1739829032809,-301.52774393,0.00013698,5]
[353439961,1739829032820,-1368.93615679,0.00013698,5]
[353439964,1739829032838,-8455.69735533,0.00013698,5]
[353439966,1739829032849,-70394.64139986,0.00013698,5]
[353439969,1739829032860,-662.75,0.00013698,5]
[353439971,1739829032871,-550.0,0.00013698,5]
[353440330,1739829037898,-191.62751316,0.00013698,3]
[353440331,1739829037908,-20424.28879584,0.00013698,5]
[353440332,1739829037920,-2722.61887063,0.00013698,5]
[353440333,1739829037931,-347.678414,0.00013698,5]
[353440334,1739829037974,-4230.66,0.00013698,5]
[353440335,1739829037986,-1357.6702831,0.00013698,5]
[353440336,1739829037998,-5547.74016914,0.00013698,5]
[353440337,1739829038009,-5853.38940005,0.00013698,5]
[353440338,1739829038020,-2989.099368,0.00013698,5]
[353440339,1739829038031,-46038.98356351,0.00013698,5]
[353440340,1739829038048,-6297.02998929,0.00013698,5]
[353440341,1739829038083,-122289.80892674,0.00013698,5]
[353440342,1739829038150,-1466.06623931,0.00013698,5]
[353440343,1739829038161,-38771.02365332,0.00013698,5]
[353440344,1739829038172,-2608.485,0.00013698,5]
[353440345,1739829038184,-614.1916537,0.00013698,5]
[353440346,1739829038195,-46734.27086983,0.00013698,5]
[353440471,1739829040035,-39549.99917666,0.00013698,5]
[353440473,1739829040046,-368.01328587,0.00013698,5]
[353440479,1739829040114,-1406.51246176,0.00013698,5]
[353440481,1739829040125,-60101.50377924,0.00013698,5]
[353440498,1739829040313,-682.25381479,0.00013698,5]
[353440500,1739829040326,-966.52919244,0.00013698,5]
[353440502,1739829040337,-2408.5238079,0.00013698,5]
[353440507,1739829040384,-754.72951032,0.00013698,5]
[353440509,1739829040395,-30400.66008251,0.00013698,5]
[353440511,1739829040406,-4026.8,0.00013698,5]
[353440513,1739829040417,-518.72365054,0.00013698,5]
[353440517,1739829040457,-448.14759547,0.00013698,5]
[353440519,1739829040468,-34940.26146743,0.00013698,5]
[353440785,1739829043080,-9054.77305436,0.00013698,5]
[353440806,1739829043261,-397220.96564964,0.00013698,5]
[353440808,1739829043272,-4452.03440242,0.00013698,5]
[353441048,1739829046064,-1024.15,0.00013698,5]
[353441049,1739829342253,15000.0,0.0002,120]
[353441067,1739830232111,-1216.3832,8.836e-05,2]
[353441068,1739830232120,-150.0,8.904e-05,2]
[353441069,1739830232129,-282.79,8.973e-05,2]
[353441070,1739830232138,-181.23863571,9.719e-05,2]
[353441071,1739830232147,-5670.70415835,9.719e-05,2]
[353441072,1739830232156,-150.0,9.719e-05,2]
[353441073,1739830232165,-150.0,9.719e-05,2]
[353441074,1739830232175,-550.0,0.0001,2]
[353441075,1739830232183,-372.62,0.00010137,2]
[353441076,1739830232192,-300.0,0.00010807,2]
[353441077,1739830232202,-504.58,0.00010807,2]
[353441078,1739830232212,-504.81,0.00010808,2]
[353441079,1739830232221,-496.83,0.00010809,2]
[353441080,1739830232230,-496.68,0.0001081,2]
[353441081,1739830232242,-508.02,0.00010812,2]
[353441082,1739830232251,-509.31,0.00010815,2]
[353441083,1739830232259,-502.86,0.00010819,2]
[353441084,1739830232268,-504.88,0.00010824,2]
[353441085,1739830232278,-505.71,0.00010831,2]
[353441086,1739830232287,-500.82,0.0001084,2]
[353441087,1739830232295,-505.91,0.00010852,2]
[353441088,1739830232304,-503.38,0.0001087,2]
[353441089,1739830232314,-504.45,0.00010893,2]
[353441090,1739830232323,-1341.61,0.00010905,2]
[353441091,1739830232332,-506.77,0.00010905,2]
[353441092,1739830232340,-509.19,0.00010905,2]
[353441093,1739830232349,-495.34,0.00010905,2]
[353441094,1739830232358,-507.37,0.00010905,2]
[353441095,1739830232367,-349.24,0.00011147,2]
[353441096,1739830232376,-150.0,0.00011231,2]
[353441097,1739830232385,-159.17,0.00011231,2]
[353441098,1739830232394,-516.67,0.00011261,2]
[353441099,1739830232403,-250.0,0.00011263,2]
[353441100,1739830232412,-4300.52,0.00011277,2]
[353441101,1739830232421,-181.23863571,0.00011278,2]
[353441102,1739830232430,-1380.8,0.00011307,2]
[353441103,1739830232439,-1238.12839533,0.00011318,2]
[353441104,1739830232451,-22661.87160467,0.00011318,2]
[353441105,1739830232460,-5861.32,0.00011378,2]
[353441106,1739830232469,-500.0,0.00011381,2]
[353441107,1739830232479,-1135.63,0.00011393,2]
[353441108,1739830232487,-2313.43,0.00011464,2]
[353441109,1739830232496,-2000.0,0.00011476,2]
[353441110,1739830232505,-1000.0,0.00011493,2]
[353441111,1739830232514,-178.8968,0.00011516,2]
[353441112,1739830232526,-240.2532,0.00011516,2]
[353441113,1739830232535,-184.51,0.0001185,2]
[353441114,1739830232545,-420.0,0.00011878,2]
[353441115,1739830232554,-600.0,0.00012,2]
[353441116,1739830232563,-301.1,0.00012039,2]
[353441117,1739830232572,-200.0,0.00012199,2]
[353441118,1739830232581,-150.0,0.00012304,2]
[353441119,1739830232591,-150.0,0.00012304,2]
[353441120,1739830232601,-150.0,0.00012304,2]
[353441121,1739830232610,-150.0,0.00012304,2]
[353441122,1739830232619,-150.0,0.00012331,2]
[353441123,1739830232629,-150.0,0.00012359,2]
[353441124,1739830232638,-150.0,0.00012386,2]
[353441125,1739830232647,-150.0,0.00012413,2]
[353441126,1739830232657,-150.0,0.00012428,2]
[353441127,1739830232667,-150.0,0.00012441,2]
[353441128,1739830232676,-150.0,0.00012468,2]
[353441129,1739830232685,-150.0,0.00012475,2]
[353441130,1739830232694,-150.0,0.00012496,2]
[353441131,1739830232703,-150.0,0.00012523,2]
[353441132,1739830232714,-349.24,0.0001254,2]
[353441133,1739830232723,-150.0,0.0001255,2]
[353441134,1739830232732,-150.0,0.00012553,2]
[353441135,1739830232742,-150.0,0.00012578,2]
[353441136,1739830232751,-150.0,0.00012605,2]
[353441137,1739830232760,-150.0,0.00012632,2]
[353441138,1739830232770,-150.0,0.00012646,2]
[353441139,1739830232780,-150.0,0.0001266,2]
[353441140,1739830232790,-150.0,0.00012677,2]
[353441141,1739830232803,-150.0,0.00012687,2]
[353441142,1739830232813,-150.0,0.00012714,2]
[353441143,1739830232822,-150.0,0.00012742,2]
[353441144,1739830232832,-150.0,0.00012769,2]
[353441145,1739830232841,-150.0,0.00012796,2]
[353441146,1739830232851,-150.0,0.00012801,2]
[353441147,1739830232860,-150.0,0.00012817,2]
[353441148,1739830232870,-150.0,0.00012824,2]
[353441149,1739830232879,-150.0,0.00012851,2]
[353441150,1739830232889,-150.0,0.00012878,2]
[353441151,1739830232898,-150.0,0.00012906,2]
[353441152,1739830232908,-704.77,0.00012925,2]
[353441153,1739830232918,-508.86,0.00012925,2]
[353441154,1739830232927,-493.97,0.00012925,2]
[353441155,1739830232936,-498.34,0.00012925,2]
[353441156,1739830232946,-150.0,0.00012926,2]
[353441157,1739830232955,-1000.0,0.0001293,2]
[353441158,1739830232966,-150.0,0.00012933,2]
[353441159,1739830232976,-150.0,0.0001296,2]
[353441160,1739830232985,-150.0,0.00012988,2]
[353441161,1739830232995,-150.0,0.00012988,2]
[353441162,1739830233003,-2096.5,0.00013,3]
[353441163,1739830233013,-400.0,0.00013,4]
[353441164,1739830233022,-166.69,0.00013002,2]
[353441165,1739830233031,-150.0,0.00013015,2]
[353441166,1739830233041,-150.0,0.00013042,2]
[353441167,1739830233051,-150.0,0.0001305,2]
[353441168,1739830233061,-420.0,0.00013055,2]
[353441169,1739830233071,-150.0,0.0001307,2]
[353441170,1739830233080,-497.35,0.00013071,2]
[353441171,1739830233090,-150.0,0.00013097,2]
[353441172,1739830233099,-800.0,0.000131,4]
[353441173,1739830233109,-150.0,0.00013124,2]
[353441174,1739830233119,-150.0,0.00013152,2]
[353441175,1739830233128,-150.0,0.00013159,2]
[353441176,1739830233138,-1341.61,0.00013169,2]
[353441177,1739830233148,-150.0,0.00013174,2]
[353441178,1739830233157,-150.0,0.00013179,2]
[353441179,1739830233167,-1200.0,0.000132,4]
[353441180,1739830233176,-150.0,0.00013206,2]
[353441181,1739830233186,-150.0,0.00013234,2]
[353441182,1739830233196,-500.0,0.0001326,2]
[353441183,1739830233206,-150.0,0.00013261,2]
[353441184,1739830233217,-150.0,0.00013288,2]
[353441185,1739830233227,-150.0,0.00013298,2]
[353441186,1739830233241,-1700.0,0.000133,4]
[353441187,1739830233251,-150.0,0.00013316,2]
[353441188,1739830233262,-150.0,0.00013329,2]
[353441189,1739830233272,-150.0,0.00013343,2]
[353441190,1739830233282,-150.0,0.0001337,2]
[353441191,1739830233292,-150.0,0.00013398,2]
[353441192,1739830233302,-2100.0,0.000134,4]
[353441193,1739830233312,-150.0,0.00013423,2]
[353441194,1739830233322,-150.0,0.00013425,2]
[353441195,1739830233332,-150.0,0.00013452,2]
[353441196,1739830233341,-150.0,0.0001348,2]
[353441197,1739830233350,-400.0,0.000135,4]
[353441198,1739830233360,-150.0,0.000135,2]
[353441199,1739830233370,-150.0,0.00013507,2]
[353441200,1739830233380,-150.0,0.00013535,2]
[353441201,1739830233390,-150.0,0.00013547,2]
[353441202,1739830233399,-150.0,0.00013562,2]
[353441203,1739830233408,-150.0,0.00013589,2]
[353441204,1739830233417,-158.92334666,0.00013598,2]
[353441205,1739830233426,-170.0,0.000136,2]
[353441206,1739830233435,-400.0,0.000136,4]
[353441207,1739830233445,-150.0,0.00013617,2]
[353441208,1739830233455,-150.0,0.00013644,2]
[353441209,1739830233467,-150.0,0.00013671,2]
[353441210,1739830233477,-150.0,0.00013671,2]
[353441211,1739830233487,-150.0,0.00013671,2]
[353441212,1739830233497,-426.39740773,0.00013697,2]
[353441213,1739830233508,-303.49264907,0.00013697,2]
[353441214,1739830233517,-1401.10061173,0.00013698,2]
[353441215,1739830233527,-76954.18283079,0.00013698,5]
[353441216,1739830233540,-1996.96595993,0.00013698,5]
[353441217,1739830233551,-15940.20906633,0.00013698,5]
[353441218,1739830233563,-302345.0216132,0.00013698,5]
[353441219,1739830233574,-14662.62076938,0.00013698,5]
[353441220,1739830233586,-2042.67767467,0.00013698,5]
[353441221,1739830233606,-329286.93730662,0.00013698,5]
[353441222,1739830233626,-500.0,0.00013698,5]
[353441223,1739830233638,-641.94558982,0.00013698,5]
[353441224,1739830233650,-3983.04186657,0.00013698,5]
[353441446,1739830238103,-27886.05,0.00013698,5]
[353441447,1739830238114,-1000.0,0.00013698,5]
[353441449,1739830238140,-1972.34,0.00013698,5]
[353441450,1739830238262,-4037.57747779,0.00013698,5]
[353441451,1739830238274,-4857.2,0.00013698,5]
[353441452,1739830238286,-1815.97474894,0.00013698,5]
[353441453,1739830238297,-130041.9909751,0.00013698,5]
[353441454,1739830238321,-138.74872791,0.00013698,5]
[353441455,1739830238332,-1231.05520866,0.00013698,5]
[353441456,1739830238343,-16724.77273276,0.00013698,5]
[353441634,1739830240226,-3150.11392817,0.00013698,5]
[353441637,1739830240241,-26604.06277919,0.00013698,5]
[353441639,1739830240252,-9413.20434523,0.00013698,5]
[353441641,1739830240263,-4057090.8391842,0.00013698,5]
[353441643,1739830240275,-17216.53496926,0.00013698,5]
[353441645,1739830240286,-7168.12994413,0.00013698,5]
[353441647,1739830240297,-4831.9,0.00013698,5]
[353441650,1739830240309,-67376.16509575,0.00013698,5]
[353441652,1739830240320,-2462.07407674,0.00013698,5]
[353441654,1739830240331,-33567.39632867,0.00013698,5]
[353441656,1739830240342,-19301.82697401,0.00013698,5]
[353441661,1739830240379,-1025.06710056,0.00013698,5]
[353441663,1739830240390,-9680.47888571,0.00013698,5]
[353441665,1739830240401,-4014.5,0.00013698,5]
[353441667,1739830240412,-1362.69862934,0.00013698,5]
[353441669,1739830240424,-2414.57738281,0.00013698,5]
[353441672,1739830240436,-799.4,0.00013698,5]
[353441674,1739830240447,-315.289,0.00013698,5]
[353441676,1739830240458,-370.292,0.00013698,5]
[353441678,1739830240471,-10813.44397206,0.00013698,5]
[353441680,1739830240482,-555.89672797,0.00013698,5]
[353441683,1739830240495,-1353.8216,0.00013698,5]
[353441685,1739830240507,-2400.47475159,0.00013698,5]
[353441687,1739830240518,-573.21934277,0.00013698,5]
[353441689,1739830240529,-258.59,0.00013698,5]
[353441691,1739830240540,-3365.45796823,0.00013698,5]
[353441955,1739830243208,-2958.5052,0.00013698,5]
[353441957,1739830243227,-519.90796093,0.00013698,5]
[353441959,1739830243242,-4540.0,0.00013698,5]
[353441961,1739830243253,-682.1928,0.00013698,5]
[353441963,1739830243264,-1983.6409057,0.00013698,5]
[353441965,1739830243275,-9810.49999999,0.00013698,5]
[353441977,1739830243361,-686.0995385,0.00013698,5]
[353441979,1739830243372,-1348.427728,0.00013698,5]
[353441981,1739830243384,-25859.5064,0.00013698,5]
[353441983,1739830243402,-993.65312793,0.00013698,5]
[353441985,1739830243413,-869.30755836,0.00013698,5]
[353441987,1739830243426,-1759.35999998,0.00013698,5]
[353441989,1739830243437,-2124.4700145,0.00013698,5]
[353441991,1739830243448,-2429.625,0.00013698,5]
[353441993,1739830243462,-2422.0,0.00013698,5]
[353441996,1739830243475,-15154.19434664,0.00013698,5]
[353441997,1739830243486,-397220.96564964,0.00013698,5]
[353441999,1739830243497,-4850.0,0.00013698,5]
[353442170,1739830246078,-373.78320873,0.00013698,5]
[353442171,1739830246106,-557.6099985,0.00013698,5]